bitfinex/quotes_SOLUSD_20250514
["timestamp","ask_amount","ask_price","bid_price","bid_amount"]
[1747241047511,42.26333894,176.05,176.0,33.26632271]
[1747241048014,42.26333894,176.07,176.0,33.26632271]
[1747241048506,42.26333894,176.05,176.0,33.26632271]
[1747241048880,42.26333894,176.05,176.0,7.26632271]
[1747241050322,42.26333894,176.09,176.0,21.47086816]
[1747241050516,42.26333894,176.1,176.01,18.64964886]
[1747241050715,42.26333894,176.1,176.02,5.68117259]
[1747241051082,138.2,176.12,176.03,18.64964886]
[1747241051386,27.85442035,176.11,176.03,18.64964886]
[1747241052279,27.85442035,176.1,176.03,18.64964886]
[1747241052483,27.85442035,176.09,176.02,19.88410407]
[1747241052983,27.85442035,176.08,176.02,5.68117259]
[1747241053197,27.85442035,176.07,176.02,5.68117259]
[1747241054405,27.85442035,176.08,176.02,5.68117259]
[1747241054601,27.85442035,176.07,176.02,5.68117259]
[1747241055003,27.85442035,176.05,176.0,1.5846]
[1747241055209,27.85442035,176.01,175.94,6.5401]
[1747241055404,27.85442035,175.96,175.94,6.5401]
[1747241055611,27.85442035,175.95,175.9,1.544]
[1747241056186,27.85442035,175.96,175.9,1.544]
[1747241056698,27.85442035,175.96,175.9,7.22897905]
[1747241057098,138.2,176.02,175.9,21.44159985]
[1747241057305,138.2,176.01,175.92,26.0]
[1747241057513,42.310168,175.99,175.92,26.0]
[1747241057826,42.310168,176.0,175.93,18.64964886]
[1747241058013,138.2,176.01,175.94,0.28432314]
[1747241058217,26.0,176.07,175.96,26.0]
[1747241058514,42.310168,176.05,175.97,18.64964886]
[1747241058716,138.2,176.09,176.0,26.0]
[1747241058929,42.310168,176.07,176.0,27.519]
[1747241059547,42.310168,176.06,176.0,27.519]
[1747241059722,42.310168,176.05,176.0,27.519]
[1747241060203,42.310168,176.03,175.98,6.6338]
[1747241060405,42.310168,176.02,175.98,6.6338]
[1747241061498,42.310168,176.02,175.98,12.31616976]
[1747241062320,42.310168,176.03,175.98,12.31616976]
[1747241062831,5.67955926,176.07,175.98,12.31616976]
[1747241063057,42.310168,176.03,175.98,12.31616976]
[1747241063223,42.310168,176.02,175.98,6.6338]
[1747241063518,138.2,176.06,175.98,12.31622771]
[1747241063709,42.310168,176.02,175.98,6.6338]
[1747241064094,42.310168,176.02,175.98,12.31622043]
[1747241064312,42.310168,176.03,175.98,12.31622043]
[1747241064621,180.510168,176.06,175.98,12.31622043]
[1747241064795,180.510168,176.06,175.98,26.52238022]
[1747241066224,42.310168,176.03,175.98,12.31622043]
[1747241066534,42.310168,176.02,175.98,12.31622043]
[1747241066899,42.310168,176.01,175.98,6.6338]
[1747241067133,42.310168,175.99,175.95,5.68337036]
[1747241067334,42.310168,175.98,175.94,13.26653578]
[1747241068299,5.68149536,176.01,175.94,13.26653578]
[1747241068500,42.310168,175.98,175.94,13.26653578]
[1747241068702,42.310168,175.95,175.89,11.75877153]
[1747241069128,42.310168,175.97,175.89,37.75877153]
[1747241069309,42.310168,175.96,175.89,37.75877153]
[1747241070536,42.310168,175.96,175.9,0.39855072]
[1747241071043,42.310168,175.98,175.9,19.04819958]
[1747241071200,42.310168,175.96,175.9,0.39855072]
[1747241071600,42.310168,175.95,175.9,0.39855072]
[1747241071936,42.310168,175.94,175.9,0.39855072]
[1747241072103,42.310168,175.92,175.9,0.39855072]
[1747241072509,42.310168,175.91,175.9,0.39855072]
[1747241073809,5.68444167,175.92,175.9,0.39855072]
[1747241074204,42.310168,175.91,175.9,0.39855072]
[1747241074448,47.99489314,175.91,175.9,0.39855072]
[1747241075430,26.0,175.94,175.9,0.39855072]
[1747241075602,42.310168,175.91,175.9,0.39855072]
[1747241075800,0.28432314,175.95,175.9,0.39855072]
[1747241075998,42.310168,175.91,175.9,0.39855072]
[1747241076739,0.28432314,175.97,175.9,0.39855072]
[1747241076925,42.310168,175.93,175.9,0.39855072]
[1747241077308,27.91323397,175.93,175.9,0.39855072]
[1747241077510,27.91323397,175.94,175.9,6.08359904]
[1747241077935,27.91323397,175.93,175.9,6.08359904]
[1747241078542,143.88248698,175.98,175.9,6.08359904]
[1747241078747,27.91323397,175.95,175.9,6.08359904]
[1747241079031,27.91323397,175.94,175.9,6.08359904]
[1747241079839,27.91323397,175.94,175.9,0.39855072]
[1747241080009,27.91323397,175.93,175.9,0.39855072]
[1747241080645,27.91323397,175.92,175.9,0.39855072]
[1747241080941,27.91323397,175.94,175.9,0.39855072]
[1747241081440,138.2,175.96,175.9,6.0834357]
[1747241081740,27.91323397,175.95,175.9,6.0834357]
[1747241082321,166.11323397,175.96,175.9,6.0834357]
[1747241082533,27.91323397,175.95,175.9,6.0834357]
[1747241082923,138.2,175.96,175.9,20.2960565]
[1747241083437,138.2,176.0,175.91,18.64964886]
[1747241083607,166.11323397,176.0,175.91,18.64964886]
[1747241084013,27.91323397,175.99,175.92,0.39855072]
[1747241084852,166.11323397,176.0,175.93,19.89427612]
[1747241085046,138.2,176.0,175.94,27.83408719]
[1747241085227,166.11323397,176.04,175.94,27.83408719]
[1747241085434,27.91323397,176.03,175.95,0.39855072]
[1747241086834,27.91323397,176.02,175.96,5.68310979]
[1747241087521,27.91323397,176.01,175.95,5.68335453]
[1747241087723,27.91323397,175.98,175.94,8.0479]
[1747241087948,27.91323397,175.97,175.94,8.0479]
[1747241088130,27.91323397,175.98,175.94,13.73164294]
[1747241088848,27.91323397,176.0,175.94,13.73164294]
[1747241089855,27.91323397,175.99,175.94,13.73164294]
[1747241090056,27.91323397,175.97,175.94,6.4389]
[1747241090461,27.91323397,175.96,175.9,11.94324949]
[1747241091164,27.91323397,175.97,175.9,11.94324949]
[1747241091327,27.91323397,175.97,175.9,26.15587029]
[1747241091652,27.91323397,175.96,175.9,11.94324949]
[1747241091819,27.91323397,175.94,175.9,6.2583]
[1747241092020,27.91323397,175.92,175.86,32.137]
[1747241092252,27.91323397,175.93,175.86,32.137]
[1747241092927,27.91323397,175.94,175.86,32.137]
[1747241093240,138.2,175.98,175.88,18.64964886]
[1747241093423,138.2,175.98,175.91,44.64964886]
[1747241094123,166.11323397,175.98,175.91,44.64964886]
[1747241094434,138.2,175.98,175.91,44.64964886]
[1747241094749,27.91323397,176.0,175.92,0.28432314]
[1747241094926,27.91323397,176.01,175.93,7.6982]
[1747241095254,27.91323397,175.99,175.94,5.68375582]
[1747241095752,138.2,176.02,175.94,5.68375582]
[1747241096053,27.91323397,176.01,175.94,5.68375582]
[1747241096554,138.2,176.02,175.94,19.89314538]
[1747241096849,138.2,176.02,175.95,18.64964886]
[1747241097430,166.11323397,176.02,175.96,5.68310979]
[1747241097631,27.91323397,176.0,175.94,5.68375582]
[1747241098144,27.91323397,176.01,175.94,5.68375582]
[1747241098346,27.91323397,176.0,175.94,5.68375582]
[1747241098549,27.91323397,175.98,175.93,7.6982]
[1747241098937,143.88134201,176.02,175.93,13.38226126]
[1747241099255,27.91323397,176.01,175.93,13.38226126]
[1747241099451,166.11323397,176.02,175.93,27.59245849]
[1747241099759,166.11323397,176.02,175.94,18.64964886]
[1747241100054,138.2,176.02,175.94,19.78603918]
[1747241100454,138.2,176.07,175.97,26.0]
[1747241100627,166.11323397,176.07,175.98,18.64964886]
[1747241100829,27.91323397,176.06,175.98,18.64964886]
[1747241101029,27.91323397,176.02,175.95,44.64964886]
[1747241101255,27.91323397,176.01,175.95,26.0]
[1747241101424,27.91323397,176.02,175.96,5.68310979]
[1747241101952,27.91323397,176.05,175.97,18.64964886]
[1747241102122,166.11323397,176.06,175.97,18.64964886]
[1747241102325,171.79320196,176.06,175.97,18.64964886]
[1747241102746,166.11323397,176.06,175.97,18.64964886]
[1747241103339,171.79314457,176.06,175.97,18.64964886]
[1747241103562,171.79314457,176.06,175.98,5.68246391]
[1747241103764,27.91323397,176.03,175.96,5.68310979]
[1747241104231,138.2,176.06,175.99,26.0]
[1747241104862,166.11323397,176.06,175.97,18.64964886]
[1747241105176,27.91323397,176.02,175.96,5.68310979]
[1747241105535,27.91323397,176.04,175.96,18.64964886]
[1747241105735,138.2,176.06,175.99,26.0]
[1747241105936,166.11323397,176.06,175.99,26.0]
[1747241106254,27.91323397,176.01,175.95,5.68343279]
[1747241106832,138.2,176.05,175.95,5.68343279]
[1747241107034,166.11323397,176.05,175.96,18.64964886]
[1747241107364,138.2,176.09,176.0,18.64964886]
[1747241107539,166.11323397,176.09,176.02,5.68117259]
[1747241107870,27.91323397,176.08,176.02,5.68117259]
[1747241108059,27.91323397,176.04,176.01,6.2985]
[1747241108559,166.11323397,176.09,176.01,11.97985521]
[1747241108770,138.2,176.09,176.02,1.6182]
[1747241109081,27.91323397,176.1,176.03,0.14216157]
[1747241109365,27.91323397,176.05,176.02,1.6182]
[1747241109568,27.91323397,176.03,176.01,6.2985]
[1747241109880,27.91323397,176.04,176.01,6.2985]
[1747241110035,27.91323397,176.05,176.01,6.2985]
[1747241110348,27.91323397,176.04,176.01,11.97995423]
[1747241110739,27.91323397,176.04,176.01,6.2985]
[1747241111057,27.91323397,176.03,175.98,5.68225652]
[1747241111467,27.91323397,176.05,175.98,5.68225652]
[1747241111637,27.91323397,176.06,175.98,5.68225652]
[1747241112085,138.2,176.07,176.0,0.14216157]
[1747241112260,27.91323397,176.1,176.02,26.0]
[1747241112470,27.91323397,176.1,176.03,18.64964886]
[1747241112966,27.91323397,176.11,176.04,6.1585]
[1747241113337,27.91323397,176.12,176.04,6.1585]
[1747241113742,33.5912517,176.12,176.05,5.68020448]
[1747241113965,27.91323397,176.11,176.05,5.68020448]
[1747241114936,27.91323397,176.1,176.04,11.83898288]
[1747241115434,27.91323397,176.08,176.04,6.1585]
[1747241115639,27.91323397,176.06,176.04,6.1585]
[1747241116066,27.91323397,176.08,176.04,6.1585]
[1747241116571,27.91323397,176.05,175.99,12.02272931]
[1747241116771,27.91323397,176.03,175.99,12.02272931]
[1747241117072,27.91323397,176.02,175.99,6.3407]
[1747241118083,27.91323397,176.04,175.99,12.02272812]
[1747241118262,166.11323397,176.07,175.99,12.02272812]
[1747241118665,27.91323397,176.06,175.99,12.02272812]
[1747241119274,138.2,176.07,176.0,18.64964886]
[1747241119479,138.2,176.13,176.03,26.0]
[1747241119784,166.11323397,176.13,176.05,5.68020448]
[1747241119950,27.91323397,176.09,176.03,26.0]
[1747241120347,27.91323397,176.1,176.03,26.0]
[1747241120548,138.2,176.12,176.04,18.64964886]
[1747241121056,138.2,176.12,176.05,1.5545]
[1747241121669,27.91323397,176.15,176.09,5.67891419]
[1747241121861,138.2,176.18,176.09,5.67891419]
[1747241121862,27.91323397,176.16,176.09,5.67891419]
[1747241122073,27.91323397,176.14,176.08,6.6387]
[1747241122652,27.91323397,176.1,176.08,6.6387]
[1747241122876,26.0,176.15,176.05,1.5545]
[1747241122877,27.91323397,176.09,176.05,1.5545]
[1747241123080,27.91323397,176.08,176.05,1.5545]
[1747241123490,166.11323397,176.13,176.05,1.5545]
[1747241123491,27.91323397,176.09,176.05,1.5545]
[1747241123650,138.2,176.17,176.06,18.79181043]
[1747241123859,27.91323397,176.15,176.06,18.79181043]
[1747241124284,27.91323397,176.15,176.06,44.79181043]
[1747241124990,27.91323397,176.14,176.07,5.67955926]
[1747241125159,27.91323397,176.12,176.06,5.67981197]
[1747241125582,27.91323397,176.13,176.06,5.67981197]
[1747241125784,138.2,176.18,176.1,26.0]
[1747241126079,27.91323397,176.22,176.12,0.14216157]
[1747241126253,27.91323397,176.22,176.12,0.28432314]
[1747241126454,27.91323397,176.21,176.12,0.14216157]
[1747241126676,27.91323397,176.18,176.11,18.64964886]
[1747241126880,27.91323397,176.17,176.11,5.67822751]
[1747241127453,27.91323397,176.16,176.1,5.67850294]
[1747241127675,27.91323397,176.14,176.08,6.3231]
[1747241127883,138.2,176.17,176.08,12.00229906]
[1747241128253,138.2,176.17,176.09,18.79181043]
[1747241128454,166.11323397,176.17,176.09,18.79181043]
[1747241128776,27.91323397,176.15,176.09,18.64964886]
[1747241128980,27.91323397,176.16,176.1,5.6785917]
[1747241129174,27.91323397,176.19,176.11,0.28432314]
[1747241129654,27.91323397,176.2,176.11,0.28432314]
[1747241129851,138.2,176.21,176.11,0.28432314]
[1747241129852,27.91323397,176.19,176.11,0.28432314]
[1747241130277,27.91323397,176.19,176.1,45.87507097]
[1747241130583,27.91323397,176.19,176.11,18.64964886]
[1747241130976,27.91323397,176.18,176.12,5.67794685]
[1747241131559,166.11323397,176.21,176.13,18.64964886]
[1747241131897,138.2,176.21,176.13,44.64964886]
[1747241132058,138.2,176.21,176.15,18.64964886]
[1747241132554,138.2,176.21,176.14,1.6639]
[1747241132555,166.11323397,176.21,176.14,1.6639]
[1747241132982,27.91323397,176.18,176.14,1.6639]
[1747241133168,27.91323397,176.19,176.14,1.6639]
[1747241133989,27.91323397,176.16,176.12,26.0]
[1747241134394,27.91323397,176.17,176.12,26.0]
[1747241134765,27.91323397,176.16,176.1,5.6785917]
[1747241135483,27.91323397,176.15,176.09,1.5398]
[1747241135858,27.91323397,176.14,176.09,7.21859841]
[1747241136081,27.91323397,176.15,176.09,7.21859841]
[1747241137761,5.67597262,176.19,176.09,7.21859841]
[1747241138095,27.91323397,176.17,176.09,7.21859841]
[1747241138393,27.91323397,176.16,176.09,7.21859841]
[1747241139085,27.91323397,176.18,176.1,18.64964886]
[1747241139278,166.11323397,176.19,176.1,18.64964886]
[1747241139487,27.91323397,176.21,176.12,44.64964886]
[1747241139679,143.87441075,176.23,176.14,5.67730214]
[1747241139680,27.91323397,176.22,176.14,5.67730214]
[1747241139880,27.91323397,176.21,176.14,5.67730214]
[1747241140389,27.91323397,176.22,176.15,18.64964886]
[1747241140763,138.2,176.28,176.17,18.64964886]
[1747241140976,166.11323397,176.28,176.19,1.5998]
[1747241141184,138.2,176.28,176.19,1.5998]
[1747241141367,27.91323397,176.27,176.19,1.5998]
[1747241141575,27.91323397,176.24,176.19,7.27529285]
[1747241141989,27.91323397,176.26,176.19,7.27529285]
[1747241142174,27.91323397,176.27,176.19,7.27529285]
[1747241142567,138.2,176.28,176.19,21.46452038]
[1747241142761,27.91323397,176.27,176.19,21.46452038]
[1747241143167,166.11323397,176.28,176.19,21.46452038]
[1747241143392,171.78612086,176.28,176.19,21.46452038]
[1747241143596,27.91323397,176.27,176.19,21.46452038]
[1747241143766,27.91323397,176.26,176.19,7.27529285]
[1747241143966,27.91323397,176.27,176.19,7.27529285]
[1747241144275,138.2,176.28,176.19,7.27529285]
[1747241144276,138.2,176.28,176.19,21.46452038]
[1747241145002,138.2,176.28,176.2,18.64964886]
[1747241145504,166.11323397,176.28,176.2,18.64964886]
[1747241145998,171.78609227,176.28,176.21,5.67504681]
[1747241146500,27.91323397,176.27,176.21,5.67504681]
[1747241146876,27.91323397,176.26,176.2,5.67531771]
[1747241147475,27.91323397,176.23,176.19,1.5998]
[1747241147778,27.91323397,176.2,176.16,6.1077]
[1747241147976,27.91323397,176.17,176.14,1.6004]
[1747241148177,27.91323397,176.18,176.14,7.27768461]
[1747241148590,27.91323397,176.18,176.14,1.6004]
[1747241148801,27.91323397,176.16,176.12,6.0564]
[1747241148970,27.91323397,176.13,176.09,1.6179]
[1747241149176,27.91323397,176.11,176.09,1.6179]
[1747241149497,138.2,176.17,176.07,6.1386]
[1747241149498,27.91323397,176.1,176.07,6.1386]
[1747241149699,27.91323397,176.08,176.02,11.81968466]
[1747241149897,27.91323397,176.05,176.02,11.81963709]
[1747241150085,27.91323397,176.05,176.02,6.1386]
[1747241150272,27.91323397,176.06,176.02,6.1386]
[1747241150473,68.25017555,176.13,176.02,11.81962559]
[1747241150773,27.91323397,176.05,176.02,6.1386]
[1747241152182,27.91323397,176.1,176.03,18.64964886]
[1747241152377,27.91323397,176.1,176.03,18.79346326]
[1747241153802,27.91323397,176.09,176.03,0.1438144]
[1747241154006,27.91323397,176.09,176.04,5.68052715]
[1747241155301,27.91323397,176.12,176.05,18.64964886]
[1747241155511,27.91323397,176.13,176.05,18.64964886]
[1747241155879,27.91323397,176.13,176.06,0.06883709]
[1747241156092,138.2,176.15,176.06,19.94842358]
[1747241156294,27.91323397,176.14,176.07,18.64964886]
[1747241156485,27.91323397,176.13,176.06,19.94842358]
[1747241156691,27.91323397,176.12,176.06,19.87958649]
[1747241156881,27.91323397,176.12,176.07,0.06883709]
[1747241157200,138.2,176.15,176.07,0.06883709]
[1747241157390,27.91323397,176.16,176.07,44.71848595]
[1747241157595,138.2,176.19,176.11,6.1764]
[1747241157906,138.2,176.23,176.12,18.64964886]
[1747241158116,27.91323397,176.19,176.13,19.87168568]
[1747241158481,138.2,176.23,176.13,19.87168568]
[1747241158681,27.91323397,176.2,176.14,0.06883709]
[1747241158876,27.91323397,176.21,176.14,18.71848595]
[1747241159187,27.91323397,176.22,176.14,18.71848595]
[1747241159380,27.91323397,176.23,176.14,18.71848595]
[1747241160006,27.91323397,176.22,176.15,5.67697984]
[1747241160186,27.91323397,176.21,176.15,5.67697984]
[1747241160502,27.91323397,176.23,176.16,18.71848595]
[1747241160873,27.91323397,176.25,176.16,18.71848595]
[1747241161094,27.91323397,176.26,176.17,0.28432314]
[1747241161298,27.91323397,176.26,176.17,1.41928035]
[1747241161510,152.37745061,176.34,176.17,1.41928035]
[1747241161511,138.2,176.34,176.2,0.28432314]
[1747241161677,27.91323397,176.29,176.2,0.28432314]
[1747241161879,27.91323397,176.28,176.2,0.14216157]
[1747241162119,27.91323397,176.25,176.21,0.06883709]
[1747241162421,27.91323397,176.22,176.21,0.06883709]
[1747241162582,27.91323397,176.23,176.21,0.06883709]
[1747241163600,27.91323397,176.22,176.21,0.06883709]
[1747241164108,5.67214974,176.3,176.21,0.06883709]
[1747241164319,27.91323397,176.27,176.21,0.06883709]
[1747241164499,53.91323397,176.31,176.21,0.06883709]
[1747241164500,5.67190517,176.31,176.21,0.06883709]
[1747241164690,27.91323397,176.29,176.21,0.06883709]
[1747241165006,27.91323397,176.3,176.23,26.0]
[1747241165183,27.91323397,176.28,176.21,0.06883709]
[1747241165381,27.91323397,176.24,176.19,31.6756169]
[1747241165791,27.91323397,176.23,176.22,0.06883709]
[1747241166007,33.58507692,176.31,176.22,0.06883709]
[1747241166188,27.91323397,176.29,176.22,0.06883709]
[1747241166383,27.91323397,176.3,176.22,0.06883709]
[1747241166885,27.91323397,176.26,176.22,0.06883709]
[1747241167085,27.91323397,176.24,176.22,0.06883709]
[1747241167500,27.91323397,176.25,176.22,0.06883709]
[1747241168522,27.91323397,176.26,176.22,0.06883709]
[1747241168720,5.67284264,176.28,176.22,0.06883709]
[1747241168721,27.91323397,176.25,176.22,0.06883709]
[1747241169018,27.91323397,176.26,176.22,0.06883709]
[1747241169522,138.2,176.3,176.22,0.06883709]
[1747241169698,138.2,176.3,176.23,26.0]
[1747241169888,138.2,176.3,176.24,18.64964886]
[1747241170636,138.2,176.3,176.25,0.06883709]
[1747241171520,138.2,176.3,176.25,5.74259595]
[1747241172028,138.2,176.3,176.25,19.92699311]
[1747241172536,138.2,176.3,176.25,5.74259595]
[1747241172708,166.11323397,176.3,176.25,5.74259595]
[1747241173035,138.2,176.3,176.25,5.74259595]
[1747241173326,166.11323397,176.3,176.25,5.74259595]
[1747241173527,171.78544221,176.3,176.25,26.06883709]
[1747241173707,27.91323397,176.29,176.25,31.74256319]
[1747241174324,27.91323397,176.29,176.25,5.74256319]
[1747241174722,138.2,176.3,176.25,5.74256319]
[1747241175103,27.91323397,176.29,176.25,5.74256319]
[1747241175402,27.91323397,176.27,176.25,0.06883709]
[1747241175908,27.91323397,176.28,176.25,0.06883709]
[1747241176717,27.91323397,176.26,176.25,0.06883709]
[1747241177313,0.28432314,176.25,176.14,5.6772077]
[1747241177521,27.91323397,176.16,176.13,7.8066]
[1747241177705,27.91323397,176.17,176.13,7.8066]
[1747241177909,27.91323397,176.16,176.13,6.2422]
[1747241178127,27.91323397,176.14,176.09,12.16141419]
[1747241178315,27.91323397,176.11,176.09,6.4825]
[1747241178702,27.91323397,176.12,176.09,12.16134402]
[1747241178904,26.0,176.2,176.09,12.16134402]
[1747241179129,27.91323397,176.14,176.09,12.16134402]
[1747241179425,27.91323397,176.12,176.08,5.67922633]
[1747241179917,27.91323397,176.1,176.06,5.67988185]
[1747241180227,27.91323397,176.1,176.05,6.368]
[1747241180432,18.64964886,176.16,176.03,7.20371963]
[1747241180433,27.91323397,176.06,176.03,7.20371963]
[1747241180745,27.91323397,176.07,176.03,7.20371963]
[1747241181046,27.91323397,176.08,176.03,7.20371963]
[1747241181196,27.91323397,176.07,176.03,7.20371963]
[1747241181706,5.67792792,176.13,176.03,7.20359672]
[1747241181923,27.91323397,176.09,176.03,7.20359672]
[1747241182103,27.91323397,176.08,176.03,7.20359672]
[1747241182500,0.28432314,176.18,176.06,26.0]
[1747241182725,27.91323397,176.16,176.06,18.64964886]
[1747241183000,27.91323397,176.17,176.09,26.0]
[1747241183199,27.91323397,176.18,176.11,6.2041]
[1747241183733,27.91323397,176.2,176.12,18.64964886]
[1747241183942,34.68505747,176.29,176.12,18.64964886]
[1747241183943,27.91323397,176.21,176.13,1.5393]
[1747241184238,27.91323397,176.2,176.13,1.5393]
[1747241184420,27.91323397,176.19,176.13,1.5393]
[1747241184634,27.91323397,176.17,176.12,5.67794685]
[1747241184828,27.91323397,176.17,176.16,0.150223]
[1747241185008,27.91323397,176.2,176.16,0.150223]
[1747241185206,42.20434517,176.2,176.16,0.150223]
[1747241185437,42.20434517,176.17,176.16,0.150223]
[1747241186932,47.88068052,176.17,176.16,0.150223]
[1747241187841,5.67633535,176.17,176.16,0.150223]
[1747241188028,47.88068052,176.17,176.16,0.150223]
[1747241188536,26.0,176.14,176.04,7.18675503]
[1747241188721,42.20434517,176.05,176.03,6.6469]
[1747241189128,42.20434517,176.06,176.03,6.6469]
[1747241189936,42.20434517,176.07,176.03,12.32762801]
[1747241190744,42.20434517,176.06,176.03,6.6469]
[1747241190914,42.20434517,176.04,175.99,13.30667879]
[1747241191925,42.20434517,176.04,176.0,0.15175072]
[1747241192323,42.20434517,176.13,176.0,44.80139958]
[1747241192526,42.20434517,176.08,176.0,44.80139958]
[1747241192831,42.20434517,176.06,176.0,26.15175072]
[1747241193017,42.20434517,176.07,176.01,5.68149536]
[1747241193547,42.20434517,176.08,176.01,19.88523378]
[1747241193850,42.20434517,176.06,176.01,5.68149536]
[1747241194034,42.20434517,176.05,176.01,5.68149536]
[1747241194427,42.20434517,176.04,175.99,7.6246]
[1747241194662,42.20434517,176.03,175.99,13.30669819]
[1747241195044,42.20434517,176.01,175.99,6.1183]
[1747241195356,42.20434517,176.0,175.96,5.68286423]
[1747241195727,42.20434517,176.01,175.96,5.68286423]
[1747241196133,42.20434517,176.0,175.96,5.68286423]
[1747241196333,42.20434517,176.0,175.95,13.70553949]
[1747241196619,42.20434517,175.99,175.95,8.0222]
[1747241196820,42.20434517,175.99,175.95,13.70550811]
[1747241197124,42.20434517,175.99,175.95,8.0222]
[1747241197323,42.20434517,175.97,175.92,5.68433755]
[1747241197522,5.68216059,175.99,175.92,5.68433755]
[1747241198040,42.20434517,175.96,175.92,5.68433755]
[1747241198252,42.20434517,175.96,175.91,13.79914892]
[1747241198742,42.20434517,175.97,175.91,13.79914892]
[1747241198945,42.20434517,175.98,175.92,18.64964886]
[1747241199146,42.20434517,176.0,175.93,5.68407889]
[1747241199552,42.20434517,175.99,175.93,5.68407889]
[1747241200227,42.20434517,176.0,175.93,19.89427612]
[1747241200538,42.20434517,175.99,175.93,5.68407889]
[1747241200739,42.20434517,175.95,175.92,5.68432886]
[1747241200945,42.20434517,175.96,175.92,5.68432886]
[1747241201158,47.88680908,175.98,175.91,8.1145]
[1747241201333,42.20434517,175.93,175.91,6.4905]
[1747241201534,42.20434517,175.93,175.87,34.0156]
[1747241201933,42.20434517,175.92,175.87,8.0156]
[1747241202255,42.20434517,175.92,175.87,34.0156]
[1747241202437,42.20434517,175.92,175.87,8.0156]
[1747241202959,42.20434517,175.92,175.87,13.70156909]
[1747241203274,42.20434517,175.94,175.87,8.0156]
[1747241203456,42.20434517,175.89,175.83,12.1255116]
[1747241203632,42.20434517,175.89,175.83,38.1255116]
[1747241203824,42.20434517,175.89,175.83,12.1255116]
[1747241204024,42.20434517,175.85,175.8,5.68828213]
[1747241204265,42.20434517,175.86,175.8,5.68828213]
[1747241204477,42.20434517,175.87,175.8,5.68828213]
[1747241204658,138.2,175.88,175.81,18.64964886]
[1747241205036,42.20434517,175.91,175.82,19.90672278]
[1747241205264,42.20434517,175.92,175.83,18.933972]
[1747241205461,42.20434517,175.9,175.82,19.90672278]
[1747241205769,42.20434517,175.89,175.82,19.90672278]
[1747241206129,42.20434517,175.9,175.82,19.90672278]
[1747241206429,143.88416983,175.93,175.82,19.90672278]
[1747241206642,42.20434517,175.89,175.82,19.90672278]
[1747241206856,5.684402,175.92,175.82,19.90672278]
[1747241207030,42.20434517,175.87,175.82,5.68763508]
[1747241207231,5.684402,175.92,175.82,5.68763508]
[1747241207232,42.20434517,175.86,175.82,5.68763508]
[1747241207527,42.20434517,175.85,175.8,5.68828213]
[1747241209783,180.40434517,175.9,175.81,18.64964886]
[1747241210141,138.2,175.9,175.82,0.28432314]
[1747241210467,42.20434517,175.92,175.84,44.64964886]
[1747241210633,138.2,175.97,175.86,18.64964886]
[1747241210829,138.2,175.97,175.88,18.64964886]
[1747241211144,42.20434517,176.0,175.91,26.0]
[1747241211342,42.20434517,175.98,175.91,26.0]
[1747241212046,42.20434517,175.96,175.91,26.0]
[1747241212352,42.20434517,175.94,175.88,44.64964886]
[1747241212655,42.20434517,175.93,175.89,5.68537153]
[1747241212961,42.20434517,175.94,175.89,5.68537153]
[1747241213845,42.20434517,175.92,175.87,7.9616]
[1747241214050,42.20434517,175.9,175.87,7.9616]
[1747241214542,26.0,175.97,175.87,13.64743372]
[1747241214753,42.20434517,175.95,175.87,13.64743372]
[1747241214954,42.20434517,175.93,175.87,13.64743372]
[1747241215159,42.20434517,175.91,175.87,7.9616]
[1747241215375,42.20434517,175.9,175.84,31.68675952]
[1747241215582,42.20434517,175.89,175.84,5.68675952]
[1747241215777,138.2,175.94,175.84,5.68675952]
[1747241215973,42.20434517,175.9,175.84,5.68675952]
[1747241216279,42.20434517,175.89,175.84,5.68675952]
[1747241216877,42.20434517,175.88,175.83,12.21026777]
[1747241217679,42.20434517,175.89,175.83,12.21026777]
[1747241217884,138.2,175.93,175.84,18.64964886]
[1747241218056,180.40434517,175.93,175.84,18.64964886]
[1747241218373,42.20434517,175.91,175.83,12.21026777]
[1747241218562,42.20434517,175.9,175.83,30.85991663]
[1747241218760,138.2,175.93,175.83,12.21026777]
[1747241219076,42.20434517,175.9,175.83,12.21026777]
[1747241219890,138.2,175.93,175.84,18.64964886]
[1747241220059,138.2,175.93,175.86,26.0]
[1747241220378,42.20434517,175.91,175.86,26.0]
[1747241220765,180.40434517,175.93,175.87,5.68601808]
[1747241220963,138.2,175.93,175.88,18.64964886]
[1747241221162,42.20434517,175.94,175.87,5.68601808]
[1747241221361,27.91082747,175.91,175.9,0.150446]
[1747241222780,53.91082747,175.91,175.9,0.150446]
[1747241222967,59.59555261,175.91,175.9,0.150446]